fUSD/lending_fUSD_20250120
["ID","MTS","AMOUNT","RATE_DAILY","PERIOD"]
[349654044,1737358252121,-500.0,0.00021517,2]
[349654045,1737358252131,-500.0,0.00021517,2]
[349654046,1737358252141,-524.14570629,0.00021517,2]
[349654047,1737358252151,-500.0,0.00021517,2]
[349654048,1737358252161,-554.77,0.00021517,2]
[349654049,1737358252171,-500.0,0.00021517,2]
[349654050,1737358252180,-500.0,0.00021517,2]
[349654051,1737358252189,-550.23,0.00021517,2]
[349654052,1737358252203,-500.0,0.00021517,2]
[349654053,1737358252212,-500.0,0.00021517,2]
[349654054,1737358252222,-500.0,0.00021517,2]
[349654055,1737358252231,-500.0,0.00021517,2]
[349654056,1737358252241,-500.0,0.00021517,2]
[349654057,1737358252250,-500.0,0.00021517,2]
[349654058,1737358252260,-500.0,0.00021519,2]
[349654059,1737358252273,-219.97213749,0.00021519,2]
[349654060,1737358252282,-587.13,0.00021519,2]
[349654061,1737358252292,-755.93,0.00021519,2]
[349654062,1737358252302,-500.0,0.00021519,2]
[349654063,1737358252311,-1055.48,0.00021519,2]
[349654064,1737358252321,-503.01,0.00021519,2]
[349654065,1737358252330,-500.0,0.00021519,2]
[349654066,1737358252340,-500.0,0.00021519,2]
[349654067,1737358252349,-500.0,0.00021519,2]
[349654068,1737358252359,-782.35,0.00021519,2]
[349654069,1737358252368,-579.31,0.00021519,2]
[349654070,1737358252378,-627.72,0.00021519,2]
[349654071,1737358252387,-500.0,0.00021519,2]
[349654072,1737358252396,-500.0,0.00021519,2]
[349654073,1737358252404,-500.0,0.00021519,2]
[349654074,1737358252414,-500.0,0.00021519,2]
[349654075,1737358252425,-703.71,0.00021519,2]
[349654076,1737358252435,-500.0,0.00021519,2]
[349654077,1737358252446,-500.0,0.00021519,2]
[349654078,1737358252456,-500.0,0.00021519,2]
[349654079,1737358252466,-500.0,0.00021519,2]
[349654080,1737358252475,-500.0,0.00021519,2]
[349654081,1737358252484,-912.15,0.00021519,2]
[349654082,1737358252493,-500.0,0.00021519,2]
[349654083,1737358252502,-1209.05,0.00021519,2]
[349654084,1737358252515,-1477.96,0.00021519,2]
[349654085,1737358252525,-966.05,0.00021519,2]
[349654086,1737358252535,-1555.52,0.00021519,2]
[349654087,1737358252544,-500.0,0.00021519,2]
[349654088,1737358252553,-500.0,0.00021519,2]
[349654089,1737358252562,-500.0,0.00021519,2]
[349654090,1737358252572,-703.78,0.00021519,2]
[349654091,1737358252581,-726.99,0.00021519,2]
[349654092,1737358252591,-515.51,0.00021519,2]
[349654093,1737358252600,-500.0,0.00021519,2]
[349654094,1737358252610,-1025.24,0.00021519,2]
[349654095,1737358252619,-786.18,0.00021519,2]
[349654096,1737358252628,-976.73,0.00021519,2]
[349654097,1737358252638,-1180.34,0.00021519,2]
[349654098,1737358252646,-500.0,0.00021519,2]
[349654099,1737358252655,-629.34,0.00021519,2]
[349654100,1737358252664,-500.0,0.00021519,2]
[349654101,1737358252674,-500.0,0.00021519,2]
[349654102,1737358252682,-500.0,0.00021519,2]
[349654103,1737358252691,-522.14,0.00021519,2]
[349654104,1737358252701,-645.07,0.00021519,2]
[349654105,1737358252710,-500.0,0.00021519,2]
[349654106,1737358252718,-500.0,0.00021519,2]
[349654107,1737358252727,-500.0,0.00021519,2]
[349654108,1737358252736,-935.67,0.00021519,2]
[349654109,1737358252745,-500.0,0.00021519,2]
[349654110,1737358252754,-500.0,0.00021519,2]
[349654111,1737358252765,-500.0,0.00021519,2]
[349654112,1737358252774,-757.56,0.00021519,2]
[349654113,1737358252783,-1278.75,0.00021519,2]
[349654114,1737358252792,-500.0,0.00021519,2]
[349654115,1737358252801,-508.16,0.00021519,2]
[349654116,1737358252810,-557.57,0.00021519,2]
[349654117,1737358252819,-550.66,0.00021519,2]
[349654118,1737358252828,-500.0,0.0002152,2]
[349654119,1737358252836,-500.0,0.0002152,2]
[349654120,1737358252846,-500.0,0.0002152,2]
[349654121,1737358252855,-500.0,0.0002152,2]
[349654122,1737358252864,-804.91,0.0002152,2]
[349654123,1737358252873,-500.0,0.0002152,2]
[349654124,1737358252882,-571.51544091,0.0002152,2]
[349654125,1737358252891,-902.97,0.0002152,2]
[349654126,1737358252900,-620.25,0.0002152,2]
[349654127,1737358252910,-1335.24,0.0002152,2]
[349654128,1737358252920,-788.31,0.0002152,2]
[349654129,1737358252929,-614.53,0.0002152,2]
[349654130,1737358252939,-500.0,0.0002152,2]
[349654131,1737358252949,-762.02,0.0002152,2]
[349654132,1737358252958,-500.0,0.0002152,2]
[349654133,1737358252967,-500.0,0.0002152,2]
[349654134,1737358252976,-500.0,0.0002152,2]
[349654135,1737358252985,-1123.75,0.0002156,2]
[349654136,1737358252995,-567.0,0.00021577,2]
[349654137,1737358253004,-1397.9106134,0.00021599,2]
[349654138,1737358253017,-150.0,0.0002162,4]
[349654139,1737358253026,-200.0,0.0002164,5]
[349654140,1737358253035,-1974.0,0.0002167,2]
[349654141,1737358253048,-1139.0,0.0002169,2]
[349654142,1737358253058,-997.21,0.0002169,2]
[349654143,1737358253067,-841.83,0.0002169,2]
[349654144,1737358253077,-1568.84,0.0002169,2]
[349654145,1737358253088,-686.33,0.0002169,2]
[349654146,1737358253097,-588.46,0.0002169,2]
[349654147,1737358253107,-1280.7,0.0002169,2]
[349654148,1737358253117,-2967.14,0.0002169,2]
[349654149,1737358253126,-1748.92,0.0002169,2]
[349654150,1737358253136,-742.97,0.0002169,2]
[349654151,1737358253145,-500.0,0.0002169,2]
[349654152,1737358253155,-647.97,0.0002169,2]
[349654153,1737358253164,-1188.05,0.0002169,2]
[349654154,1737358253173,-842.54,0.00021691,2]
[349654155,1737358253181,-500.0,0.00021691,2]
[349654156,1737358253190,-577.26,0.00021691,2]
[349654157,1737358253200,-3973.63,0.00021691,2]
[349654158,1737358253208,-1011.74,0.00021691,2]
[349654159,1737358253217,-2791.81,0.00021691,2]
[349654160,1737358253226,-1475.060812,0.00021691,2]
[349654161,1737358253235,-585.35,0.00021691,2]
[349654162,1737358253244,-1408.83,0.00021691,2]
[349654163,1737358253253,-500.0,0.00021691,2]
[349654164,1737358253265,-1687.86,0.00021691,2]
[349654165,1737358253274,-1944.56,0.00021691,2]
[349654166,1737358253283,-500.0,0.00021691,2]
[349654167,1737358253292,-628.518133,0.00021691,2]
[349654168,1737358253301,-531.13,0.00021691,2]
[349654169,1737358253311,-1493.9,0.00021691,2]
[349654170,1737358253320,-1434.48,0.00021691,2]
[349654171,1737358253329,-540.03,0.00021691,2]
[349654172,1737358253339,-1599.15,0.00021691,2]
[349654173,1737358253348,-749.61,0.00021691,2]
[349654174,1737358253358,-1124.91,0.00021691,2]
[349654175,1737358253367,-500.0,0.00021691,2]
[349654176,1737358253376,-1653.98,0.00021691,2]
[349654177,1737358253385,-2188.93,0.00021691,2]
[349654178,1737358253394,-500.0,0.00021691,2]
[349654179,1737358253403,-666.16,0.00021691,2]
[349654180,1737358253412,-1655.06,0.00021691,2]
[349654181,1737358253421,-500.0,0.00021691,2]
[349654182,1737358253431,-3129.34,0.00021691,2]
[349654183,1737358253443,-1733.0,0.00021691,2]
[349654184,1737358253453,-1812.09,0.00021691,2]
[349654185,1737358253462,-3247.89,0.00021691,2]
[349654186,1737358253471,-3759.08,0.00021691,2]
[349654187,1737358253481,-978.53,0.00021691,2]
[349654188,1737358253490,-500.0,0.00021691,2]
[349654189,1737358253499,-2232.69,0.00021691,2]
[349654190,1737358253589,-4573.56,0.00021691,2]
[349654191,1737358253606,-1490.55,0.00021691,2]
[349654192,1737358253616,-1877.94,0.00021691,2]
[349654193,1737358253625,-747.39,0.00021691,2]
[349654194,1737358253635,-2267.92,0.00021691,2]
[349654195,1737358253645,-500.0,0.00021693,2]
[349654196,1737358253659,-500.0,0.00021693,2]
[349654197,1737358253669,-598.74,0.00021693,2]
[349654198,1737358253679,-539.08,0.00021693,2]
[349654199,1737358253689,-530.9,0.00021693,2]
[349654200,1737358253699,-500.0,0.00021693,2]
[349654201,1737358253710,-500.0,0.00021693,2]
[349654202,1737358253726,-810.25,0.00021693,2]
[349654203,1737358253738,-778.8,0.00021693,2]
[349654204,1737358253748,-500.0,0.00021693,2]
[349654205,1737358253759,-500.0,0.00021693,2]
[349654206,1737358253777,-701.47,0.00021693,2]
[349654207,1737358253788,-592.31432803,0.00021693,2]
[349654208,1737358253798,-500.0,0.00021693,2]
[349654209,1737358253809,-500.0,0.00021693,2]
[349654210,1737358253820,-500.0,0.00021693,2]
[349654211,1737358253831,-500.0,0.00021693,2]
[349654212,1737358253843,-500.0,0.00021693,2]
[349654213,1737358253853,-531.31,0.00021693,2]
[349654214,1737358253863,-1049.78,0.00021693,2]
[349654215,1737358253874,-754.86,0.00021693,2]
[349654216,1737358253885,-500.0,0.00021693,2]
[349654217,1737358253896,-939.56,0.00021693,2]
[349654218,1737358253907,-524.49,0.00021693,2]
[349654219,1737358253918,-817.68,0.00021693,2]
[349654220,1737358253932,-500.0,0.00021693,2]
[349654221,1737358253943,-514.1,0.00021693,2]
[349654222,1737358253954,-1014.13,0.00021693,2]
[349654223,1737358253965,-500.0,0.00021693,2]
[349654224,1737358253976,-692.25,0.00021693,2]
[349654225,1737358253987,-500.0,0.00021693,2]
[349654226,1737358253998,-500.0,0.00021693,2]
[349654227,1737358254009,-500.0,0.00021693,2]
[349654228,1737358254025,-1392.63,0.00021693,2]
[349654229,1737358254037,-1028.77,0.00021693,2]
[349654230,1737358254048,-715.02,0.00021693,2]
[349654231,1737358254059,-812.65,0.00021693,2]
[349654232,1737358254071,-1251.3,0.00021693,2]
[349654233,1737358254084,-835.78,0.00021693,2]
[349654234,1737358254095,-923.81,0.00021693,2]
[349654235,1737358254106,-883.84,0.00021693,2]
[349654236,1737358254118,-545.11,0.00021693,2]
[349654237,1737358254128,-578.86,0.00021693,2]
[349654238,1737358254139,-1891.85,0.00021693,2]
[349654239,1737358254150,-1492.9,0.00021693,2]
[349654240,1737358254161,-500.0,0.00021693,2]
[349654241,1737358254171,-693.51,0.00021693,2]
[349654242,1737358254180,-687.38,0.00021693,2]
[349654243,1737358254190,-1018.55,0.00021693,2]
[349654244,1737358254199,-2188.22,0.00021693,2]
[349654245,1737358254208,-1012.28,0.00021693,2]
[349654246,1737358254218,-671.9,0.00021693,2]
[349654247,1737358254227,-3198.95,0.00021693,2]
[349654248,1737358254238,-1807.29,0.00021693,2]
[349654249,1737358254247,-2284.05,0.00021693,2]
[349654250,1737358254256,-1588.75,0.00021693,2]
[349654251,1737358254270,-217.46,0.00021693,2]
[349654252,1737358254280,-4505.9,0.00021693,2]
[349654253,1737358254289,-3227.61,0.00021693,2]
[349654254,1737358254299,-660.17,0.00021693,2]
[349654255,1737358254308,-5765.91,0.00021693,2]
[349654256,1737358254318,-500.0,0.00021693,2]
[349654257,1737358254327,-591.12,0.00021693,2]
[349654258,1737358254338,-500.0,0.00021693,2]
[349654259,1737358254348,-931.82,0.00021693,2]
[349654260,1737358254357,-500.0,0.00021693,2]
[349654261,1737358254367,-677.48,0.00021693,2]
[349654262,1737358254376,-5840.28,0.00021693,2]
[349654263,1737358254386,-500.0,0.00021693,2]
[349654264,1737358254395,-1225.23,0.00021693,2]
[349654265,1737358254404,-2060.03,0.00021693,2]
[349654266,1737358254414,-251.4858009,0.00021693,2]
[349654267,1737358254423,-3610.55,0.00021693,2]
[349654268,1737358254432,-2580.22,0.00021693,2]
[349654269,1737358254441,-5754.21,0.00021693,2]
[349654270,1737358254450,-591.44,0.00021693,2]
[349654271,1737358254459,-864.06,0.00021693,2]
[349654272,1737358254467,-889.56,0.00021693,2]
[349654273,1737358254476,-1342.14,0.00021693,2]
[349654274,1737358254487,-500.0,0.00021693,2]
[349654275,1737358254496,-1727.15,0.00021693,2]
[349654276,1737358254506,-1114.35,0.00021693,2]
[349654277,1737358254520,-1736.59,0.00021693,2]
[349654278,1737358254529,-2365.3,0.00021693,2]
[349654279,1737358254539,-500.0,0.00021693,2]
[349654280,1737358254549,-503.38,0.00021693,2]
[349654281,1737358254558,-885.25,0.00021693,2]
[349654282,1737358254567,-1113.75,0.00021693,2]
[349654283,1737358254577,-500.0,0.00021693,2]
[349654284,1737358254588,-1687.03,0.00021693,2]
[349654285,1737358254597,-661.41,0.00021693,2]
[349654286,1737358254606,-1230.27,0.00021693,2]
[349654287,1737358254615,-623.34,0.00021693,2]
[349654288,1737358254624,-500.0,0.00021693,2]
[349654289,1737358254633,-777.15,0.00021693,2]
[349654290,1737358254642,-648.2,0.00021693,2]
[349654291,1737358254651,-500.0,0.00021693,2]
[349654292,1737358254661,-500.0,0.00021693,2]
[349654293,1737358254670,-644.5,0.00021693,2]
[349654294,1737358254679,-3562.99,0.00021693,2]
[349654295,1737358254688,-341.20284277,0.00021693,2]
[349654296,1737358254697,-205.74,0.00021693,2]
[349654297,1737358254706,-150.0,0.00021735,4]
[349654298,1737358254715,-500.0,0.00021774,2]
[349654299,1737358254725,-1170.66641,0.0002178,2]
[349654300,1737358254734,-500.0,0.00021791,2]
[349654301,1737358254743,-500.0,0.00021791,2]
[349654302,1737358254753,-500.0,0.00021791,2]
[349654303,1737358254765,-500.0,0.00021791,2]
[349654304,1737358254774,-501.5,0.00021791,2]
[349654305,1737358254783,-500.0,0.00021791,2]
[349654306,1737358254792,-830.3,0.00021791,2]
[349654307,1737358254801,-500.0,0.00021791,2]
[349654308,1737358254810,-500.0,0.00021791,2]
[349654309,1737358254820,-500.0,0.00021791,2]
[349654310,1737358254829,-500.0,0.00021791,2]
[349654311,1737358254838,-500.0,0.00021791,2]
[349654312,1737358254847,-500.0,0.00021791,2]
[349654313,1737358254856,-500.0,0.00021791,2]
[349654314,1737358254866,-617.69,0.00021791,2]
[349654315,1737358254876,-500.0,0.00021791,2]
[349654316,1737358254885,-500.0,0.00021791,2]
[349654317,1737358254895,-500.0,0.00021791,2]
[349654318,1737358254903,-652.78,0.00021791,2]
[349654319,1737358254913,-500.0,0.00021791,2]
[349654320,1737358254921,-500.0,0.00021791,2]
[349654321,1737358254930,-500.0,0.00021791,2]
[349654322,1737358254939,-246.46977653,0.00021791,2]
[349654323,1737358254948,-559.9,0.00021791,2]
[349654324,1737358254957,-500.0,0.00021791,2]
[349654325,1737358254966,-1636.4,0.00021791,2]
[349654326,1737358254975,-835.67,0.00021791,2]
[349654327,1737358254984,-541.5,0.00021791,2]
[349654328,1737358254993,-892.03,0.00021791,2]
[349654329,1737358255089,-500.0,0.00021791,2]
[349654330,1737358255099,-500.0,0.00021791,2]
[349654331,1737358255108,-500.0,0.00021791,2]
[349654332,1737358255117,-500.0,0.00021791,2]
[349654333,1737358255126,-554.77,0.00021791,2]
[349654334,1737358255137,-500.0,0.00021791,2]
[349654335,1737358255146,-500.0,0.00021791,2]
[349654336,1737358255155,-550.23,0.00021791,2]
[349654337,1737358255164,-500.0,0.00021791,2]
[349654338,1737358255174,-500.0,0.00021791,2]
[349654339,1737358255183,-500.0,0.00021791,2]
[349654340,1737358255192,-500.0,0.00021791,2]
[349654341,1737358255202,-500.0,0.00021791,2]
[349654342,1737358255211,-500.0,0.00021791,2]
[349654343,1737358255220,-500.0,0.00021793,2]
[349654344,1737358255229,-587.13,0.00021793,2]
[349654345,1737358255238,-755.93,0.00021793,2]
[349654346,1737358255248,-500.0,0.00021793,2]
[349654347,1737358255258,-1055.48,0.00021793,2]
[349654348,1737358255270,-503.01,0.00021793,2]
[349654349,1737358255279,-500.0,0.00021793,2]
[349654350,1737358255289,-500.0,0.00021793,2]
[349654351,1737358255298,-500.0,0.00021793,2]
[349654352,1737358255307,-782.35,0.00021793,2]
[349654353,1737358255318,-579.31,0.00021793,2]
[349654354,1737358255327,-627.72,0.00021793,2]
[349654355,1737358255336,-500.0,0.00021793,2]
[349654356,1737358255346,-500.0,0.00021793,2]
[349654357,1737358255355,-500.0,0.00021793,2]
[349654358,1737358255364,-500.0,0.00021793,2]
[349654359,1737358255373,-703.71,0.00021793,2]
[349654360,1737358255383,-500.0,0.00021793,2]
[349654361,1737358255392,-500.0,0.00021793,2]
[349654362,1737358255401,-500.0,0.00021793,2]
[349654363,1737358255409,-500.0,0.00021793,2]
[349654364,1737358255419,-500.0,0.00021793,2]
[349654365,1737358255428,-912.15,0.00021793,2]
[349654366,1737358255438,-500.0,0.00021793,2]
[349654367,1737358255447,-1209.05,0.00021793,2]
[349654368,1737358255456,-1477.96,0.00021793,2]
[349654369,1737358255465,-966.05,0.00021793,2]
[349654370,1737358255475,-1555.52,0.00021793,2]
[349654371,1737358255484,-500.0,0.00021793,2]
[349654372,1737358255494,-500.0,0.00021793,2]
[349654373,1737358255504,-500.0,0.00021793,2]
[349654374,1737358255517,-703.78,0.00021793,2]
[349654375,1737358255527,-726.99,0.00021793,2]
[349654376,1737358255536,-515.51,0.00021793,2]
[349654377,1737358255546,-500.0,0.00021793,2]
[349654378,1737358255555,-1025.24,0.00021793,2]
[349654379,1737358255564,-786.18,0.00021793,2]
[349654380,1737358255573,-976.73,0.00021793,2]
[349654381,1737358255582,-1180.34,0.00021793,2]
[349654382,1737358255592,-500.0,0.00021793,2]
[349654383,1737358255601,-629.34,0.00021793,2]
[349654384,1737358255610,-500.0,0.00021793,2]
[349654385,1737358255619,-500.0,0.00021793,2]
[349654386,1737358255628,-500.0,0.00021793,2]
[349654387,1737358255637,-522.14,0.00021793,2]
[349654388,1737358255646,-645.07,0.00021793,2]
[349654389,1737358255655,-500.0,0.00021793,2]
[349654390,1737358255665,-500.0,0.00021793,2]
[349654391,1737358255674,-500.0,0.00021793,2]
[349654392,1737358255683,-935.67,0.00021793,2]
[349654393,1737358255704,-500.0,0.00021793,2]
[349654394,1737358255719,-500.0,0.00021793,2]
[349654395,1737358255739,-500.0,0.00021793,2]
[349654396,1737358255759,-757.56,0.00021793,2]
[349654397,1737358255775,-1278.75,0.00021793,2]
[349654398,1737358255793,-500.0,0.00021793,2]
[349654399,1737358255812,-508.16,0.00021793,2]
[349654400,1737358255830,-557.57,0.00021793,2]
[349654401,1737358255849,-550.66,0.00021793,2]
[349654402,1737358255866,-150.0,0.00021794,2]
[349654403,1737358255885,-419.51518233,0.00021794,2]
[349654404,1737358255899,-500.0,0.00021794,2]
[349654405,1737358255918,-500.0,0.00021794,2]
[349654406,1737358255930,-500.0,0.00021794,2]
[349654407,1737358255947,-804.91,0.00021794,2]
[349654408,1737358255962,-500.0,0.00021794,2]
[349654409,1737358255976,-902.97,0.00021794,2]
[349654410,1737358255991,-620.25,0.00021794,2]
[349654411,1737358256006,-1335.24,0.00021794,2]
[349654412,1737358256025,-788.31,0.00021794,2]
[349654413,1737358256043,-614.53,0.00021794,2]
[349654414,1737358256057,-500.0,0.00021794,2]
[349654415,1737358256073,-762.02,0.00021794,2]
[349654416,1737358256089,-500.0,0.00021794,2]
[349654417,1737358256103,-500.0,0.00021794,2]
[349654418,1737358256117,-320.44443844,0.00021794,2]
[349654419,1737358256133,-150.0,0.00021796,2]
[349654420,1737358256148,-150.14937493,0.00021796,2]
[349654421,1737358256163,-500.0,0.00021796,2]
[349654422,1737358256176,-150.0,0.00021796,2]
[349654423,1737358256192,-785.0,0.00021796,2]
[349654424,1737358256206,-150.0,0.00021796,2]
[349654425,1737358256221,-150.0,0.00021796,2]
[349654426,1737358256236,-244.84928026,0.00021796,2]
[349654427,1737358256252,-150.0,0.00021796,2]
[349654428,1737358256270,-150.0,0.00021796,2]
[349654429,1737358256284,-150.0,0.000218,2]
[349654430,1737358256299,-150.0,0.00021823,2]
[349654431,1737358256314,-500.0,0.00021823,2]
[349654432,1737358256330,-785.0,0.00021823,2]
[349654433,1737358256344,-150.0,0.00021823,2]
[349654434,1737358256359,-150.0,0.00021823,2]
[349654435,1737358256375,-150.0,0.00021823,2]
[349654436,1737358256390,-150.0,0.0002185,4]
[349654437,1737358256406,-150.0,0.0002185,4]
[349654438,1737358256422,-785.0,0.00021851,2]
[349654439,1737358256439,-150.0,0.00021851,2]
[349654440,1737358256458,-200.553,0.00021851,2]
[349654441,1737358256476,-150.0,0.00021851,2]
[349654442,1737358256492,-168.98,0.00021858,2]
[349654443,1737358256509,-785.0,0.00021878,2]
[349654444,1737358256532,-150.0,0.00021878,2]
[349654445,1737358256549,-500.0,0.0002189,2]
[349654446,1737358256565,-519.84757797,0.000219,2]
[349654447,1737358256581,-194.3847909,0.000219,2]
[349654448,1737358256597,-785.0,0.00021906,2]
[349654449,1737358256613,-222.64577163,0.00021906,2]
[349654450,1737358256629,-500.0,0.00021917,3]
[349654451,1737358256644,-500.0,0.00021917,3]
[349654452,1737358256660,-500.0,0.00021917,3]
[349654453,1737358256675,-294.01268559,0.00021917,3]
[349654454,1737358256684,-500.0,0.00021917,2]
[349654455,1737358256694,-500.0,0.00021917,2]
[349654456,1737358256847,-500.0,0.00021917,2]
[349654457,1737358256865,-500.0,0.00021917,2]
[349654458,1737358256874,-1000.0,0.00021918,3]
[349654459,1737358256884,-1000.0,0.00021918,3]
[349654460,1737358256893,-1000.0,0.00021918,3]
[349654461,1737358256902,-1000.0,0.00021918,3]
[349654462,1737358256912,-1000.0,0.00021918,3]
[349654463,1737358256921,-1000.0,0.00021918,3]
[349654464,1737358256930,-1000.0,0.00021918,3]
[349654465,1737358256939,-1000.0,0.00021918,3]
[349654466,1737358256948,-1000.0,0.00021918,3]
[349654467,1737358256957,-1000.0,0.00021918,3]
[349654468,1737358256966,-1000.0,0.00021918,3]
[349654469,1737358256975,-1000.0,0.00021918,3]
[349654470,1737358256984,-1000.0,0.00021918,3]
[349654471,1737358256994,-1000.0,0.00021918,3]
[349654472,1737358257003,-1000.0,0.00021918,3]
[349654473,1737358257012,-1000.0,0.00021918,3]
[349654474,1737358257022,-1000.0,0.00021918,3]
[349654475,1737358257031,-1000.0,0.00021918,3]
[349654476,1737358257046,-1000.0,0.00021918,3]
[349654477,1737358257055,-1000.0,0.00021918,3]
[349654478,1737358257064,-1000.0,0.00021918,3]
[349654479,1737358257074,-1000.0,0.00021918,3]
[349654480,1737358257084,-1000.0,0.00021918,3]
[349654481,1737358257094,-1000.0,0.00021918,3]
[349654482,1737358257103,-1000.0,0.00021918,3]
[349654483,1737358257112,-1000.0,0.00021918,3]
[349654484,1737358257121,-1000.0,0.00021918,3]
[349654485,1737358257131,-1000.0,0.00021918,3]
[349654486,1737358257140,-1000.0,0.00021918,3]
[349654487,1737358257149,-1000.0,0.00021918,3]
[349654488,1737358257168,-1000.0,0.00021918,3]
[349654489,1737358257179,-1000.0,0.00021918,3]
[349654490,1737358257188,-1000.0,0.00021918,3]
[349654491,1737358257198,-1000.0,0.00021918,3]
[349654492,1737358257207,-1000.0,0.00021918,3]
[349654493,1737358257216,-1000.0,0.00021918,3]
[349654494,1737358257226,-1000.0,0.00021918,3]
[349654495,1737358257235,-1000.0,0.00021918,3]
[349654496,1737358257245,-1000.0,0.00021918,3]
[349654497,1737358257255,-1000.0,0.00021918,3]
[349654498,1737358257267,-1000.0,0.00021918,3]
[349654499,1737358257276,-1000.0,0.00021918,3]
[349654500,1737358257286,-1000.0,0.00021918,3]
[349654501,1737358257295,-759.0,0.00021918,3]
[349654502,1737358257305,-150.0,0.00021918,2]
[349654503,1737358257314,-151.0,0.00021918,7]
[349654504,1737358257324,-151.0,0.00021918,7]
[349654505,1737358257334,-151.0,0.00021918,7]
[349654506,1737358257343,-151.0,0.00021918,7]
[349654507,1737358257352,-151.0,0.00021918,7]
[349654508,1737358257362,-151.0,0.00021918,7]
[349654509,1737358257371,-151.0,0.00021918,7]
[349654510,1737358257381,-151.0,0.00021918,7]
[349654511,1737358257390,-151.0,0.00021918,7]
[349654512,1737358257399,-151.0,0.00021918,7]
[349654513,1737358257409,-151.0,0.00021918,7]
[349654514,1737358257419,-151.0,0.00021918,7]
[349654515,1737358257428,-151.0,0.00021918,7]
[349654516,1737358257438,-151.0,0.00021918,7]
[349654517,1737358257448,-151.0,0.00021918,7]
[349654518,1737358257460,-151.0,0.00021918,7]
[349654519,1737358257470,-151.0,0.00021918,7]
[349654520,1737358257480,-151.0,0.00021918,7]
[349654521,1737358257489,-151.0,0.00021918,7]
[349654522,1737358257498,-151.0,0.00021918,7]
[349654523,1737358257508,-151.0,0.00021918,7]
[349654524,1737358257520,-151.0,0.00021918,7]
[349654525,1737358257530,-151.0,0.00021918,7]
[349654526,1737358257540,-151.0,0.00021918,7]
[349654527,1737358257550,-151.0,0.00021918,7]
[349654528,1737358257560,-151.0,0.00021918,7]
[349654529,1737358257569,-151.0,0.00021918,7]
[349654530,1737358257579,-151.0,0.00021918,7]
[349654531,1737358257590,-151.0,0.00021918,7]
[349654532,1737358257600,-151.0,0.00021918,7]
[349654533,1737358257610,-151.0,0.00021918,7]
[349654534,1737358257619,-151.0,0.00021918,7]
[349654535,1737358257628,-151.0,0.00021918,7]
[349654536,1737358257638,-151.0,0.00021918,7]
[349654537,1737358257648,-151.0,0.00021918,7]
[349654538,1737358257658,-151.0,0.00021918,7]
[349654539,1737358257667,-151.0,0.00021918,7]
[349654540,1737358257678,-151.0,0.00021918,7]
[349654541,1737358257687,-151.0,0.00021918,7]
[349654542,1737358257696,-151.0,0.00021918,7]
[349654543,1737358257706,-151.0,0.00021918,7]